fUSD/lending_fUSD_20240518
["ID","MTS","AMOUNT","RATE_DAILY","PERIOD"]
[327386918,1716037860867,-286.39719005,0.0003315,9]
[327386919,1716037860878,-638.61,0.0003315,9]
[327386920,1716037860887,-2346.32,0.0003315,9]
[327386921,1716037860897,-400.007852,0.0003315,7]
[327386922,1716037860907,-400.007852,0.0003315,7]
[327386923,1716037860917,-400.007852,0.0003315,7]
[327386924,1716037860927,-400.007852,0.0003315,7]
[327386925,1716037860937,-500.0,0.0003315,9]
[327386926,1716037860946,-500.0,0.0003315,9]
[327386927,1716037860956,-500.0,0.0003315,9]
[327386928,1716037860965,-500.0,0.0003315,9]
[327386929,1716037860974,-1003.61,0.0003315,9]
[327386930,1716037860984,-151.0,0.0003315,7]
[327386931,1716037860994,-1069.59,0.0003315,9]
[327386932,1716037861007,-151.0,0.0003315,7]
[327386933,1716037861016,-500.0,0.0003315,9]
[327386934,1716037861026,-151.0,0.0003315,7]
[327386935,1716037861035,-500.0,0.0003315,9]
[327386936,1716037861044,-151.0,0.0003315,7]
[327386937,1716037861053,-540.35,0.0003315,9]
[327386938,1716037861063,-716.22,0.0003315,9]
[327386939,1716037861074,-713.67,0.0003315,9]
[327386940,1716037861084,-500.0,0.0003315,9]
[327386941,1716037861094,-151.0,0.0003315,7]
[327386942,1716037861104,-584.92,0.0003315,9]
[327386943,1716037861114,-151.0,0.0003315,7]
[327386944,1716037861123,-151.0,0.0003315,7]
[327386945,1716037861132,-151.0,0.0003315,7]
[327386946,1716037861142,-708.32,0.0003315,9]
[327386947,1716037861151,-1139.23,0.0003315,9]
[327386948,1716037861163,-500.0,0.0003315,9]
[327386949,1716037861172,-500.0,0.0003315,9]
[327386950,1716037861182,-500.0,0.0003315,9]
[327386951,1716037861192,-1313.94,0.0003315,9]
[327386952,1716037861201,-623.23,0.0003315,9]
[327386953,1716037861211,-807.37,0.0003315,9]
[327386954,1716037861221,-500.0,0.0003315,9]
[327386955,1716037861230,-264.407558,0.0003315,7]
[327386956,1716037861240,-264.407558,0.0003315,7]
[327386957,1716037861249,-264.407558,0.0003315,7]
[327386958,1716037861259,-264.407558,0.0003315,7]
[327386959,1716037861269,-500.0,0.0003315,9]
[327386960,1716037861278,-500.0,0.0003315,9]
[327386961,1716037861287,-264.407558,0.0003315,7]
[327386962,1716037861297,-264.407558,0.0003315,7]
[327386963,1716037861307,-264.407558,0.0003315,7]
[327386964,1716037861318,-264.407558,0.0003315,7]
[327386965,1716037861327,-2403.43,0.0003315,9]
[327386966,1716037861337,-2238.54,0.0003315,9]
[327386967,1716037861347,-826.94,0.0003315,9]
[327386968,1716037861357,-500.0,0.0003315,9]
[327386969,1716037861366,-500.0,0.0003315,9]
[327386970,1716037861376,-500.0,0.0003315,9]
[327386971,1716037861386,-500.0,0.0003315,9]
[327386972,1716037861396,-151.0,0.0003315,7]
[327386973,1716037861405,-151.0,0.0003315,7]
[327386974,1716037861416,-500.0,0.0003315,9]
[327386975,1716037861425,-919.71,0.0003315,9]
[327386976,1716037861435,-239.954352,0.0003315,7]
[327386977,1716037861445,-1489.48,0.0003315,9]
[327386978,1716037861455,-774.89,0.0003315,9]
[327386979,1716037861466,-832.57,0.0003315,9]
[327386980,1716037861621,-866.0,0.0003315,9]
[327386981,1716037861648,-500.0,0.0003315,9]
[327386982,1716037861658,-500.0,0.0003315,9]
[327386983,1716037861668,-500.0,0.0003315,9]
[327386984,1716037861678,-500.0,0.0003315,9]
[327386985,1716037861687,-1646.67,0.0003315,9]
[327386986,1716037861696,-500.0,0.0003315,9]
[327386987,1716037861706,-500.0,0.0003315,9]
[327386988,1716037861715,-500.0,0.0003315,9]
[327386989,1716037861725,-968.15,0.0003315,9]
[327386990,1716037861734,-500.0,0.0003315,9]
[327386991,1716037861743,-993.98,0.0003315,9]
[327386992,1716037861753,-674.97,0.0003315,9]
[327386993,1716037861763,-1957.6,0.0003315,9]
[327386994,1716037861772,-183.97962197,0.0003315,9]
[327386995,1716037861781,-2230.18,0.0003315,9]
[327386996,1716037861791,-801.07,0.0003315,9]
[327386997,1716037861800,-500.0,0.0003315,9]
[327386998,1716037861809,-741.02,0.0003315,9]
[327386999,1716037861819,-1827.65,0.0003315,9]
[327387000,1716037861828,-1057.58,0.0003315,9]
[327387001,1716037861838,-500.0,0.0003315,9]
[327387002,1716037861848,-536.68,0.0003315,9]
[327387003,1716037861857,-500.0,0.0003315,9]
[327387004,1716037861866,-500.0,0.0003315,9]
[327387005,1716037861876,-500.0,0.0003315,9]
[327387006,1716037861885,-746.56,0.0003315,9]
[327387007,1716037861895,-501.31,0.0003315,9]
[327387008,1716037861904,-798.97,0.0003315,9]
[327387009,1716037861914,-151.0,0.0003315,7]
[327387010,1716037861923,-151.0,0.0003315,7]
[327387011,1716037861933,-255.673828,0.0003315,7]
[327387012,1716037861944,-180.156229,0.0003315,7]
[327387013,1716037861953,-180.156229,0.0003315,7]
[327387014,1716037861963,-835.18,0.0003315,9]
[327387015,1716037861972,-180.156229,0.0003315,7]
[327387016,1716037861981,-500.0,0.0003315,9]
[327387017,1716037861991,-180.156229,0.0003315,7]
[327387018,1716037862005,-673.73,0.0003315,9]
[327387019,1716037862014,-1084.96,0.0003315,9]
[327387020,1716037862024,-500.0,0.0003315,9]
[327387021,1716037862034,-933.58,0.0003315,9]
[327387022,1716037862043,-746.5,0.0003315,9]
[327387023,1716037862053,-180.156229,0.0003315,7]
[327387024,1716037862062,-180.156229,0.0003315,7]
[327387025,1716037862071,-500.0,0.0003315,9]
[327387026,1716037862084,-180.156229,0.0003315,7]
[327387027,1716037862094,-180.156229,0.0003315,7]
[327387028,1716037862104,-500.0,0.0003315,9]
[327387029,1716037862114,-1241.44,0.0003315,9]
[327387030,1716037862123,-822.17,0.0003315,9]
[327387031,1716037862132,-151.0,0.0003315,7]
[327387032,1716037862142,-500.0,0.0003315,9]
[327387033,1716037862152,-151.0,0.0003315,7]
[327387034,1716037862163,-151.0,0.0003315,7]
[327387035,1716037862173,-151.0,0.0003315,7]
[327387036,1716037862182,-500.0,0.0003315,9]
[327387037,1716037862191,-500.0,0.0003315,9]
[327387038,1716037862201,-560.614832,0.0003315,7]
[327387039,1716037862210,-560.614832,0.0003315,7]
[327387040,1716037862220,-500.0,0.0003315,9]
[327387041,1716037862229,-521.43,0.0003315,9]
[327387042,1716037862239,-560.614832,0.0003315,7]
[327387043,1716037862249,-560.614832,0.0003315,7]
[327387044,1716037862259,-500.0,0.0003315,9]
[327387045,1716037862268,-335.17822804,0.0003315,9]
[327387046,1716037862277,-560.614832,0.0003315,7]
[327387047,1716037862286,-560.614832,0.0003315,7]
[327387048,1716037862296,-560.614832,0.0003315,7]
[327387049,1716037862305,-500.0,0.0003315,9]
[327387050,1716037862314,-500.0,0.0003315,9]
[327387051,1716037862324,-811.33,0.0003315,9]
[327387052,1716037862333,-560.614832,0.0003315,7]
[327387053,1716037862342,-1249.21,0.0003315,9]
[327387054,1716037862351,-500.0,0.0003315,9]
[327387055,1716037862361,-500.0,0.0003315,9]
[327387056,1716037862370,-500.0,0.0003315,9]
[327387057,1716037862379,-500.0,0.0003315,9]
[327387058,1716037862388,-500.0,0.0003315,9]
[327387059,1716037862398,-3626.74,0.0003315,9]
[327387060,1716037862407,-1014.71,0.0003315,9]
[327387061,1716037862419,-335.77039,0.0003315,7]
[327387062,1716037862428,-335.77039,0.0003315,7]
[327387063,1716037862437,-500.0,0.0003315,9]
[327387064,1716037862447,-335.77039,0.0003315,7]
[327387065,1716037862456,-335.77039,0.0003315,7]
[327387066,1716037862465,-500.0,0.0003315,9]
[327387067,1716037862475,-335.77039,0.0003315,7]
[327387068,1716037862484,-335.77039,0.0003315,7]
[327387069,1716037862494,-976.25,0.0003315,9]
[327387070,1716037862503,-335.77039,0.0003315,7]
[327387071,1716037862513,-335.77039,0.0003315,7]
[327387072,1716037862522,-500.0,0.0003315,9]
[327387073,1716037862533,-500.0,0.0003315,9]
[327387074,1716037862543,-556.69,0.0003315,9]
[327387075,1716037862552,-151.0,0.0003315,7]
[327387076,1716037862562,-7478.95,0.0003315,9]
[327387077,1716037862571,-151.0,0.0003315,7]
[327387078,1716037862581,-290.141817,0.0003315,7]
[327387079,1716037862590,-854.86,0.0003315,9]
[327387080,1716037862600,-500.0,0.0003315,9]
[327387081,1716037862610,-500.0,0.0003315,9]
[327387082,1716037862620,-5091.63,0.0003315,9]
[327387083,1716037862630,-500.0,0.0003315,9]
[327387084,1716037862640,-1405.52,0.0003315,9]
[327387085,1716037862650,-500.0,0.0003315,9]
[327387086,1716037862659,-2237.55,0.0003315,9]
[327387087,1716037862669,-626.37,0.0003315,9]
[327387088,1716037862678,-500.0,0.0003315,9]
[327387089,1716037862693,-500.0,0.0003315,7]
[327387090,1716037862702,-500.0,0.0003315,7]
[327387091,1716037862711,-500.0,0.0003315,9]
[327387092,1716037862721,-500.0,0.0003315,7]
[327387093,1716037862730,-151.0,0.0003315,7]
[327387094,1716037862739,-625.43,0.0003315,9]
[327387095,1716037862749,-2170.46,0.0003315,9]
[327387096,1716037862759,-500.0,0.0003315,7]
[327387097,1716037862768,-151.0,0.0003315,7]
[327387098,1716037862777,-500.0,0.0003315,9]
[327387099,1716037862786,-910.2,0.0003315,9]
[327387100,1716037862796,-727.05,0.0003315,9]
[327387101,1716037862806,-659.01,0.0003315,9]
[327387102,1716037862815,-3123.77,0.0003315,9]
[327387103,1716037862824,-500.0,0.0003315,9]
[327387104,1716037862834,-500.0,0.0003315,7]
[327387105,1716037862843,-500.0,0.0003315,7]
[327387106,1716037862853,-500.0,0.0003315,9]
[327387107,1716037862862,-500.0,0.0003315,7]
[327387108,1716037862871,-500.0,0.0003315,9]
[327387109,1716037862881,-500.0,0.0003315,7]
[327387110,1716037862891,-151.0,0.0003315,7]
[327387111,1716037862900,-500.0,0.0003315,9]
[327387112,1716037862910,-151.0,0.0003315,7]
[327387113,1716037862923,-1519.17,0.0003315,9]
[327387114,1716037862933,-3553.12,0.0003315,9]
[327387115,1716037862943,-500.0,0.0003315,9]
[327387116,1716037862952,-2000.0,0.00033205,2]
[327387117,1716037862962,-1111.85743166,0.00033205,2]
[327387118,1716037862972,-175.06861276,0.00033324,2]
[327387119,1716037862982,-3015.73155942,0.00033421,2]
[327387120,1716037862992,-500.0,0.00033423,9]
[327387121,1716037863006,-500.0,0.00033423,9]
[327387122,1716037863016,-500.0,0.00033423,9]
[327387123,1716037863026,-151.0,0.00033424,7]
[327387124,1716037863035,-227.362553,0.00033424,7]
[327387125,1716037863045,-151.0,0.00033424,7]
[327387126,1716037863055,-151.0,0.00033424,7]
[327387127,1716037863065,-151.0,0.00033424,7]
[327387128,1716037863076,-151.0,0.00033424,7]
[327387129,1716037863086,-500.0,0.00033424,9]
[327387130,1716037863094,-422.15273286,0.00033424,9]
[327387131,1716037863104,-500.0,0.00033424,9]
[327387132,1716037863113,-500.0,0.00033424,9]
[327387133,1716037863123,-500.0,0.00033424,9]
[327387134,1716037863132,-500.0,0.00033424,9]
[327387135,1716037863141,-500.0,0.00033424,9]
[327387136,1716037863151,-500.0,0.00033424,9]
[327387137,1716037863160,-500.0,0.00033424,9]
[327387138,1716037863171,-602.71,0.00033424,9]
[327387139,1716037863180,-500.0,0.00033424,9]
[327387140,1716037863190,-500.0,0.00033424,9]
[327387141,1716037863199,-500.0,0.00033424,9]
[327387142,1716037863208,-500.0,0.00033424,9]
[327387143,1716037863218,-594.11599019,0.00033424,9]
[327387144,1716037863227,-500.0,0.00033424,9]
[327387145,1716037863236,-500.0,0.00033424,9]
[327387146,1716037863246,-235.1923013,0.00033424,9]
[327387147,1716037863255,-500.0,0.00033424,9]
[327387148,1716037863264,-500.0,0.00033424,9]
[327387149,1716037863273,-500.0,0.00033424,9]
[327387150,1716037863282,-512.54438468,0.00033424,9]
[327387151,1716037863292,-752.32,0.00033424,9]
[327387152,1716037863301,-500.0,0.00033424,9]
[327387153,1716037863310,-1118.29,0.00033424,9]
[327387154,1716037863319,-500.0,0.00033424,9]
[327387155,1716037863328,-500.0,0.00033424,9]
[327387156,1716037863338,-500.0,0.00033424,9]
[327387157,1716037863347,-357.02460006,0.00033424,9]
[327387158,1716037863356,-500.0,0.00033424,9]
[327387159,1716037863366,-500.0,0.00033424,9]
[327387160,1716037863375,-500.0,0.00033424,9]
[327387161,1716037863384,-500.0,0.00033424,9]
[327387162,1716037863394,-532.77785012,0.00033424,9]
[327387163,1716037863403,-778.21,0.00033424,9]
[327387164,1716037863413,-878.23,0.00033424,9]
[327387165,1716037863423,-151.0,0.00033424,7]
[327387166,1716037863432,-500.0,0.00033424,9]
[327387167,1716037863442,-500.0,0.00033424,9]
[327387168,1716037863451,-508.07607113,0.00033424,9]
[327387169,1716037863460,-560.97349651,0.00033424,9]
[327387170,1716037863470,-500.0,0.00033424,9]
[327387171,1716037863481,-500.0,0.00033424,9]
[327387172,1716037863492,-500.0,0.00033424,9]
[327387173,1716037863501,-151.0,0.00033424,7]
[327387174,1716037863510,-151.0,0.00033424,7]
[327387175,1716037863520,-500.0,0.00033424,9]
[327387176,1716037863529,-151.0,0.00033424,7]
[327387177,1716037863539,-500.0,0.00033424,9]
[327387178,1716037863548,-500.0,0.00033424,9]
[327387179,1716037863558,-151.0,0.00033424,7]
[327387180,1716037863567,-500.0,0.00033424,9]
[327387181,1716037863577,-500.0,0.00033424,9]
[327387182,1716037863586,-500.0,0.00033424,9]
[327387183,1716037863595,-500.0,0.00033424,9]
[327387184,1716037863604,-500.0,0.00033424,9]
[327387185,1716037863613,-601.97,0.00033424,9]
[327387186,1716037863623,-500.0,0.00033424,9]
[327387187,1716037863632,-500.0,0.00033424,9]
[327387188,1716037863642,-500.0,0.00033424,9]
[327387189,1716037863651,-500.0,0.00033424,9]
[327387190,1716037863661,-500.0,0.00033424,9]
[327387191,1716037863670,-710.61,0.00033424,9]
[327387192,1716037863679,-500.0,0.00033424,9]
[327387193,1716037863689,-771.72,0.00033424,9]
[327387194,1716037863699,-500.0,0.00033424,9]
[327387195,1716037863708,-500.0,0.00033424,9]
[327387196,1716037863717,-500.0,0.00033424,9]
[327387197,1716037863726,-500.0,0.00033424,9]
[327387198,1716037863735,-500.0,0.00033424,9]
[327387199,1716037863745,-500.0,0.00033424,9]
[327387200,1716037863754,-500.0,0.00033424,9]
[327387201,1716037863763,-361.80794138,0.00033424,9]
[327387202,1716037863773,-500.0,0.00033424,9]
[327387203,1716037863782,-500.0,0.00033424,9]
[327387204,1716037863791,-468.40996256,0.00033424,9]
[327387205,1716037863801,-575.128473,0.00033424,9]
[327387206,1716037863810,-500.0,0.00033424,9]
[327387207,1716037863819,-502.22,0.00033424,9]
[327387208,1716037863828,-500.0,0.00033424,9]
[327387209,1716037863838,-500.0,0.00033424,9]
[327387210,1716037863847,-500.0,0.00033424,9]
[327387211,1716037863856,-500.0,0.00033424,9]
[327387212,1716037863866,-500.0,0.00033424,9]
[327387213,1716037863875,-359.58895069,0.00033424,9]
[327387214,1716037863885,-500.0,0.00033424,9]
[327387215,1716037863949,-500.0,0.00033424,9]
[327387216,1716037863958,-500.0,0.00033424,9]
[327387217,1716037863967,-500.0,0.00033424,9]
[327387218,1716037863977,-188.30874,0.00033424,7]
[327387219,1716037863986,-500.0,0.00033424,9]
[327387220,1716037863997,-500.0,0.00033424,9]
[327387221,1716037864007,-500.0,0.00033424,9]
[327387222,1716037864017,-506.13,0.00033424,9]
[327387223,1716037864027,-206.92509739,0.00033424,9]
[327387224,1716037864036,-500.0,0.00033424,9]
[327387225,1716037864046,-581.63,0.00033424,9]
[327387226,1716037864055,-508.30220995,0.00033424,9]
[327387227,1716037864064,-500.0,0.00033424,9]
[327387228,1716037864074,-500.0,0.00033424,9]
[327387229,1716037864085,-500.0,0.00033424,9]
[327387230,1716037864095,-20000.0,0.00033424,2]
[327387231,1716037864105,-3028.84,0.00033424,9]
[327387232,1716037864114,-500.0,0.00033424,9]
[327387233,1716037864124,-519.88,0.00033424,9]
[327387234,1716037864134,-500.0,0.00033424,9]
[327387235,1716037864143,-500.0,0.00033424,9]
[327387236,1716037864155,-500.0,0.00033424,9]
[327387237,1716037864166,-500.0,0.00033424,9]
[327387238,1716037864175,-500.0,0.00033424,9]
[327387239,1716037864185,-524.3990458,0.00033424,9]
[327387240,1716037864194,-500.0,0.00033424,9]
[327387241,1716037864203,-500.0,0.00033424,9]
[327387242,1716037864213,-533.42054111,0.00033424,9]
[327387243,1716037864222,-500.0,0.00033424,9]
[327387244,1716037864231,-500.0,0.00033424,9]
[327387245,1716037864243,-500.0,0.00033424,9]
[327387246,1716037864252,-500.0,0.00033424,9]
[327387247,1716037864261,-159.330582,0.00033424,7]
[327387248,1716037864270,-500.0,0.00033424,9]
[327387249,1716037864280,-500.0,0.00033424,9]
[327387250,1716037864289,-500.0,0.00033424,9]
[327387251,1716037864298,-500.0,0.00033424,9]
[327387252,1716037864307,-500.0,0.00033424,9]
[327387253,1716037864316,-500.0,0.00033424,9]
[327387254,1716037864325,-2568.33,0.00033424,9]
[327387255,1716037864334,-500.0,0.00033424,9]
[327387256,1716037864343,-500.0,0.00033424,9]
[327387257,1716037864352,-500.0,0.00033424,9]
[327387258,1716037864362,-500.0,0.00033424,9]
[327387259,1716037864372,-524.6,0.00033424,9]
[327387260,1716037864381,-500.0,0.00033424,9]
[327387261,1716037864390,-500.0,0.00033424,9]
[327387262,1716037864399,-500.0,0.00033424,9]
[327387263,1716037864408,-500.0,0.00033424,9]
[327387264,1716037864418,-500.0,0.00033424,9]
[327387265,1716037864427,-548.74,0.00033424,9]
[327387266,1716037864436,-500.0,0.00033424,9]
[327387267,1716037864445,-151.0,0.00033424,7]
[327387268,1716037864455,-500.0,0.00033424,9]
[327387269,1716037864464,-500.0,0.00033424,9]
[327387270,1716037864473,-500.0,0.00033424,9]
[327387271,1716037864482,-500.0,0.00033424,9]
[327387272,1716037864491,-500.0,0.00033424,9]
[327387273,1716037864500,-679.08,0.00033424,9]
[327387274,1716037864509,-614.67129486,0.00033424,9]
[327387275,1716037864519,-500.0,0.00033424,9]
[327387276,1716037864528,-2023.72,0.00033424,9]
[327387277,1716037864537,-2168.11,0.00033424,9]
[327387278,1716037864547,-500.0,0.00033424,9]
[327387279,1716037864557,-500.0,0.00033424,9]
[327387280,1716037864566,-500.0,0.00033424,9]
[327387281,1716037864576,-2594.74,0.00033424,9]
[327387282,1716037864585,-500.0,0.00033424,9]
[327387283,1716037864595,-1416.53,0.00033424,9]
[327387284,1716037864604,-500.0,0.00033424,9]
[327387285,1716037864613,-500.0,0.00033424,9]
[327387286,1716037864622,-500.0,0.00033424,9]
[327387287,1716037864632,-500.0,0.00033424,9]
[327387288,1716037864643,-500.0,0.00033424,9]
[327387289,1716037864652,-500.0,0.00033424,9]
[327387290,1716037864663,-500.0,0.00033424,9]
[327387291,1716037864673,-500.0,0.00033424,9]
[327387292,1716037864683,-2048.33,0.00033424,9]
[327387293,1716037864693,-500.0,0.00033424,9]
[327387294,1716037864704,-500.0,0.00033424,9]
[327387295,1716037864713,-500.0,0.00033424,9]
[327387296,1716037864723,-500.0,0.00033424,9]
[327387297,1716037864733,-500.0,0.00033424,7]
[327387298,1716037864744,-151.0,0.00033424,7]
[327387299,1716037864754,-151.0,0.00033424,7]
[327387300,1716037864764,-542.06,0.00033424,9]
[327387301,1716037864774,-322.38726263,0.00033424,9]
[327387302,1716037864784,-151.0,0.00033424,7]
[327387303,1716037864794,-151.0,0.00033424,7]
[327387304,1716037864804,-151.0,0.00033424,7]
[327387305,1716037864814,-151.0,0.00033424,7]
[327387306,1716037864824,-151.0,0.00033424,7]
[327387307,1716037864835,-151.0,0.00033424,7]
[327387308,1716037864845,-500.0,0.00033424,9]
[327387309,1716037864854,-500.0,0.00033424,9]
[327387310,1716037864864,-500.0,0.00033424,9]
[327387311,1716037864874,-500.0,0.00033424,9]
[327387312,1716037864884,-861.81,0.00033424,9]
[327387313,1716037864894,-151.0,0.00033424,7]
[327387314,1716037864903,-500.0,0.00033424,9]
[327387315,1716037864914,-500.0,0.00033424,9]
[327387316,1716037864924,-151.0,0.00033424,7]
[327387317,1716037864934,-500.0,0.00033424,9]
[327387318,1716037864944,-500.0,0.00033424,9]
[327387319,1716037864953,-2462.45,0.00033424,9]
[327387320,1716037864963,-500.0,0.00033424,9]
[327387321,1716037864972,-500.0,0.00033424,9]
[327387322,1716037864982,-151.0,0.00033424,7]
[327387323,1716037864992,-151.0,0.00033424,7]
[327387324,1716037865007,-500.0,0.00033424,9]
[327387325,1716037865017,-151.0,0.00033424,7]
[327387326,1716037865026,-500.0,0.00033424,9]
[327387327,1716037865036,-151.0,0.00033424,7]
[327387328,1716037865047,-500.0,0.00033424,9]
[327387329,1716037865057,-2203.4,0.00033424,9]
[327387330,1716037865067,-157.636358,0.00033424,7]
[327387331,1716037865079,-157.636358,0.00033424,7]
[327387332,1716037865089,-157.636358,0.00033424,7]
[327387333,1716037865099,-500.0,0.00033424,9]
[327387334,1716037865109,-157.636358,0.00033424,7]
[327387335,1716037865119,-500.0,0.00033424,9]
[327387336,1716037865128,-157.636358,0.00033424,7]
[327387337,1716037865138,-157.636358,0.00033424,7]
[327387338,1716037865148,-157.636358,0.00033424,7]
[327387339,1716037865158,-157.636358,0.00033424,7]
[327387340,1716037865170,-500.0,0.00033424,9]
[327387341,1716037865180,-500.0,0.00033424,9]
[327387342,1716037865190,-500.0,0.00033424,9]
[327387343,1716037865200,-500.0,0.00033424,9]
[327387344,1716037865210,-500.0,0.00033424,9]
[327387345,1716037865220,-2626.09,0.00033424,9]
[327387346,1716037865230,-500.0,0.00033424,9]
[327387347,1716037865240,-500.0,0.00033424,9]
[327387348,1716037865250,-891.26,0.00033424,9]
[327387349,1716037865259,-500.0,0.00033424,9]
[327387350,1716037865270,-500.0,0.00033424,9]
[327387351,1716037865280,-576.89902288,0.00033424,9]
[327387352,1716037865289,-238.413267,0.00033424,7]
[327387353,1716037865299,-238.413267,0.00033424,7]
[327387354,1716037865309,-238.413267,0.00033424,7]
[327387355,1716037865319,-238.413267,0.00033424,7]
[327387356,1716037865330,-500.0,0.00033424,9]
[327387357,1716037865340,-500.0,0.00033424,9]
[327387358,1716037865350,-238.413267,0.00033424,7]
[327387359,1716037865360,-500.0,0.00033424,9]
[327387360,1716037865369,-238.413267,0.00033424,7]
[327387361,1716037865379,-151.0,0.00033424,7]
[327387362,1716037865389,-238.413267,0.00033424,7]
[327387363,1716037865399,-151.0,0.00033424,7]
[327387364,1716037865410,-238.413272,0.00033424,7]
[327387365,1716037865420,-500.0,0.00033424,9]
[327387366,1716037865430,-500.0,0.00033424,9]
[327387367,1716037865440,-521.58,0.00033424,9]
[327387368,1716037865450,-500.0,0.00033424,9]
[327387369,1716037865461,-499.26106055,0.00033424,9]
[327387370,1716037865470,-500.0,0.00033424,9]
[327387371,1716037865480,-500.0,0.00033424,9]
[327387372,1716037865491,-2944.18,0.00033424,9]
[327387373,1716037865500,-500.0,0.00033424,9]
[327387374,1716037865511,-500.0,0.00033424,9]
[327387375,1716037865521,-500.0,0.00033424,9]
[327387376,1716037865530,-500.0,0.00033424,9]
[327387377,1716037865540,-151.0,0.00033424,7]
[327387378,1716037865550,-152.095336,0.00033424,7]
[327387379,1716037865560,-151.0,0.00033424,7]
[327387380,1716037865570,-151.0,0.00033424,7]
[327387381,1716037865580,-151.0,0.00033424,7]
[327387382,1716037865593,-151.0,0.00033424,7]
[327387383,1716037865603,-527.61974846,0.00033424,9]
[327387384,1716037865613,-500.0,0.00033424,9]
[327387385,1716037865623,-371.38074425,0.00033424,9]
[327387386,1716037865632,-488.29263254,0.00033424,9]
[327387387,1716037865643,-524.22632481,0.00033424,9]
[327387388,1716037865652,-500.0,0.00033424,9]
[327387389,1716037865662,-500.0,0.00033424,9]
[327387390,1716037865672,-500.0,0.00033424,9]
[327387391,1716037865683,-500.0,0.00033424,9]
[327387392,1716037865693,-500.0,0.00033424,9]
[327387393,1716037865707,-542.26,0.00033424,9]
[327387394,1716037865720,-500.0,0.00033424,9]
[327387395,1716037865735,-500.0,0.00033424,9]
[327387396,1716037865748,-500.0,0.00033424,9]
[327387397,1716037865759,-151.0,0.00033424,7]
[327387398,1716037865773,-151.0,0.00033424,7]
[327387399,1716037865786,-151.0,0.00033424,7]
[327387400,1716037865799,-151.0,0.00033424,7]
[327387401,1716037865812,-500.0,0.00033424,9]
[327387402,1716037865825,-466.7550044,0.00033424,9]
[327387403,1716037865840,-500.0,0.00033424,9]
[327387404,1716037865854,-500.0,0.00033424,9]
[327387405,1716037865866,-300.34516,0.00033424,7]
[327387406,1716037865879,-500.0,0.00033424,9]
[327387407,1716037865891,-500.0,0.00033424,9]
[327387408,1716037865905,-500.0,0.00033424,9]
[327387409,1716037865919,-314.18429763,0.00033424,9]
[327387410,1716037865930,-500.0,0.00033424,9]
[327387411,1716037865942,-500.0,0.00033424,9]
[327387412,1716037865954,-500.0,0.00033424,9]
[327387413,1716037865967,-543.31220161,0.00033424,9]
[327387414,1716037865979,-500.0,0.00033424,9]
[327387415,1716037865992,-170.52,0.00033424,9]
[327387416,1716037866010,-500.0,0.00033424,9]
[327387417,1716037866023,-621.47,0.00033424,9]